Body Name,Body,Service Division,Expense Type,Date Paid,Transaction Ref,Invoice Amount,Supplier Name
Boston Borough Council,http://statistics.data.gov.uk/id/local-authority/32UB,Leisure,Furniture and Equipment,01/03/2023,30004300,590.46 ,Pulse Fitness LTD
Boston Borough Council,http://statistics.data.gov.uk/id/local-authority/32UB,Business Transformation,Postages,02/03/2023,30003873,576.68 ,Royal Mail
Boston Borough Council,http://statistics.data.gov.uk/id/local-authority/32UB,Communities,Bed and Breakfast Accommodation (Homelessness Service),02/03/2023,30003614,"3,884.00 ",Bramley House
Boston Borough Council,http://statistics.data.gov.uk/id/local-authority/32UB,Communities,Grants and Contributions to Outside Bodies - No Service Received,02/03/2023,30003891,300.00 ,"""personal information redacted"""
Boston Borough Council,http://statistics.data.gov.uk/id/local-authority/32UB,Communities,Grants and Contributions to Outside Bodies - No Service Received,02/03/2023,30003897,"8,026.07 ",Walkers Construction LTD
Boston Borough Council,http://statistics.data.gov.uk/id/local-authority/32UB,Communities,Grants and Contributions to Outside Bodies - No Service Received,02/03/2023,30003898,500.00 ,Fosdyke Sports And Social Club
Boston Borough Council,http://statistics.data.gov.uk/id/local-authority/32UB,Council Tax & Benefits,Computer Software Licence Costs,02/03/2023,30003872,"1,969.20 ",XL Print Software
Boston Borough Council,http://statistics.data.gov.uk/id/local-authority/32UB,Credit Control,Computer Software Licence Costs,02/03/2023,30003872,218.80 ,XL Print Software
Boston Borough Council,http://statistics.data.gov.uk/id/local-authority/32UB,"Democratic, Civic & Electoral Services",Rent Payments,02/03/2023,30003871,235.00 ,Boston United FC LTD
Boston Borough Council,http://statistics.data.gov.uk/id/local-authority/32UB,Operations,Agency Staff,02/03/2023,30003876,"3,216.36 ",Comensura LTD
Boston Borough Council,http://statistics.data.gov.uk/id/local-authority/32UB,Operations,Agency Staff,02/03/2023,30003901,393.00 ,Workforce (Boston) LTD
Boston Borough Council,http://statistics.data.gov.uk/id/local-authority/32UB,Property Services,Agency Staff,02/03/2023,30002156,"1,559.75 ",MPD FM (UK) Limited
Boston Borough Council,http://statistics.data.gov.uk/id/local-authority/32UB,Property Services,Agency Staff,02/03/2023,30003901,393.00 ,Workforce (Boston) LTD
Boston Borough Council,http://statistics.data.gov.uk/id/local-authority/32UB,Property Services,Materials and Consumables,02/03/2023,30003818,676.40 ,Princebuild LTD
Boston Borough Council,http://statistics.data.gov.uk/id/local-authority/32UB,Property Services,Materials and Consumables,02/03/2023,30003821,454.88 ,Princebuild LTD
Boston Borough Council,http://statistics.data.gov.uk/id/local-authority/32UB,Property Services,Materials and Consumables,02/03/2023,30003836,410.07 ,Princebuild LTD
Boston Borough Council,http://statistics.data.gov.uk/id/local-authority/32UB,Property Services,Materials and Consumables,02/03/2023,30003843,"1,481.51 ",Princebuild LTD
Boston Borough Council,http://statistics.data.gov.uk/id/local-authority/32UB,Property Services,Materials and Consumables,02/03/2023,30003889,"1,271.94 ",Plastica Ltd
Boston Borough Council,http://statistics.data.gov.uk/id/local-authority/32UB,Strategic Economic Development Projects,Professional Fees,02/03/2023,30003894,"2,610.00 ",Park Avenue Recruitment
Boston Borough Council,http://statistics.data.gov.uk/id/local-authority/32UB,Business Transformation,Postages,03/03/2023,30003944,266.40 ,Royal Mail
Boston Borough Council,http://statistics.data.gov.uk/id/local-authority/32UB,Business Transformation,Postages,03/03/2023,30003946,696.55 ,Royal Mail
Boston Borough Council,http://statistics.data.gov.uk/id/local-authority/32UB,Business Transformation,Postages,03/03/2023,30003947,"1,359.00 ",Royal Mail
Boston Borough Council,http://statistics.data.gov.uk/id/local-authority/32UB,Business Transformation,Postages,03/03/2023,30003962,457.03 ,Royal Mail
Boston Borough Council,http://statistics.data.gov.uk/id/local-authority/32UB,Communities,Rents - Homeless Families,03/03/2023,30004345,725.00 ,Let Us Let U
Boston Borough Council,http://statistics.data.gov.uk/id/local-authority/32UB,Council Tax & Benefits,Business Rates - Share of Income Lincolnshire County Council,03/03/2023,30004597,"563,147.52 ",Police and Crime Commissioner For Lincolnshire
Boston Borough Council,http://statistics.data.gov.uk/id/local-authority/32UB,Council Tax & Benefits,Business Rates - Share of Income Lincolnshire County Council,03/03/2023,30004598,"3,015,867.11 ",Lincolnshire County Council
Boston Borough Council,http://statistics.data.gov.uk/id/local-authority/32UB,Finance,Business Rates - Share of Income Lincolnshire County Council,03/03/2023,30004597,"563,147.52 ",Police and Crime Commissioner For Lincolnshire
Boston Borough Council,http://statistics.data.gov.uk/id/local-authority/32UB,Finance,Business Rates - Share of Income Lincolnshire County Council,03/03/2023,30004598,"3,015,867.11 ",Lincolnshire County Council
Boston Borough Council,http://statistics.data.gov.uk/id/local-authority/32UB,Finance,Postages,06/03/2023,30004301,293.65 ,imail
Boston Borough Council,http://statistics.data.gov.uk/id/local-authority/32UB,Operations,Fuel and Oil,06/03/2023,30004322,230.13 ,Fuelcard Services Ltd
Boston Borough Council,http://statistics.data.gov.uk/id/local-authority/32UB,Communities,Electricity,07/03/2023,30003912,417.25 ,EDF Energy
Boston Borough Council,http://statistics.data.gov.uk/id/local-authority/32UB,Communities,Grants and Contributions to Outside Bodies - No Service Received,07/03/2023,30003948,"6,141.39 ",Warics LTD
Boston Borough Council,http://statistics.data.gov.uk/id/local-authority/32UB,Communities,Grants and Contributions to Outside Bodies - No Service Received,07/03/2023,30004077,"15,000.00 ",Charis Grants LTD
Boston Borough Council,http://statistics.data.gov.uk/id/local-authority/32UB,Communities,Staff Training Expenses (Non-Payroll),07/03/2023,30003899,426.00 ,ASB Help
Boston Borough Council,http://statistics.data.gov.uk/id/local-authority/32UB,Communities,Staff Training Expenses (Non-Payroll),07/03/2023,30004058,296.00 ,Association for Public Service Excellence
Boston Borough Council,http://statistics.data.gov.uk/id/local-authority/32UB,Credit Control,Other Miscellaneous Expenses,07/03/2023,30003615,"1,016.76 ",Pay360 LTD
Boston Borough Council,http://statistics.data.gov.uk/id/local-authority/32UB,Economic Development,Professional and Contractors Fees,07/03/2023,30003953,"65,000.00 ",Lincolnshire County Council
Boston Borough Council,http://statistics.data.gov.uk/id/local-authority/32UB,Economic Development,Professional Fees,07/03/2023,30003952,"58,500.00 ",Lincolnshire County Council
Boston Borough Council,http://statistics.data.gov.uk/id/local-authority/32UB,Information Technology,Computer Software Licence Costs,07/03/2023,30004033,"21,167.00 ",Public Sector Partnership Services LTD
Boston Borough Council,http://statistics.data.gov.uk/id/local-authority/32UB,Information Technology,Telephone and Mobiles,07/03/2023,30004303,305.55 ,British Telecommunications Plc
Boston Borough Council,http://statistics.data.gov.uk/id/local-authority/32UB,Land Charges & Licencing,Other Miscellaneous Expenses,07/03/2023,30004034,315.00 ,"""personal information redacted"""
Boston Borough Council,http://statistics.data.gov.uk/id/local-authority/32UB,Operations,Agency Staff,07/03/2023,30003950,294.75 ,Workforce (Boston) LTD
Boston Borough Council,http://statistics.data.gov.uk/id/local-authority/32UB,Operations,Furniture and Equipment,07/03/2023,30003754,373.00 ,A J Gillman Locksmith
Boston Borough Council,http://statistics.data.gov.uk/id/local-authority/32UB,Operations,Other Income,07/03/2023,30003927,"21,300.00 ",LA Support LTD
Boston Borough Council,http://statistics.data.gov.uk/id/local-authority/32UB,Planning,Professional and Contractors Fees,07/03/2023,30004057,"8,844.37 ",Thomson Environmental Consultants Ltd
Boston Borough Council,http://statistics.data.gov.uk/id/local-authority/32UB,Property Services,Agency Staff,07/03/2023,30003950,294.75 ,Workforce (Boston) LTD
Boston Borough Council,http://statistics.data.gov.uk/id/local-authority/32UB,Property Services,Materials and Consumables,07/03/2023,30003397,"1,800.00 ",Princebuild LTD
Boston Borough Council,http://statistics.data.gov.uk/id/local-authority/32UB,Property Services,Materials and Consumables,07/03/2023,30003822,339.87 ,Princebuild LTD
Boston Borough Council,http://statistics.data.gov.uk/id/local-authority/32UB,Property Services,Materials and Consumables,07/03/2023,30003824,410.58 ,Princebuild LTD
Boston Borough Council,http://statistics.data.gov.uk/id/local-authority/32UB,Property Services,Materials and Consumables,07/03/2023,30003825,396.68 ,Princebuild LTD
Boston Borough Council,http://statistics.data.gov.uk/id/local-authority/32UB,Property Services,Materials and Consumables,07/03/2023,30003829,503.98 ,Princebuild LTD
Boston Borough Council,http://statistics.data.gov.uk/id/local-authority/32UB,Property Services,Materials and Consumables,07/03/2023,30003830,603.00 ,Princebuild LTD
Boston Borough Council,http://statistics.data.gov.uk/id/local-authority/32UB,Property Services,Materials and Consumables,07/03/2023,30003831,303.14 ,Princebuild LTD
Boston Borough Council,http://statistics.data.gov.uk/id/local-authority/32UB,Property Services,Materials and Consumables,07/03/2023,30003833,603.00 ,Princebuild LTD
Boston Borough Council,http://statistics.data.gov.uk/id/local-authority/32UB,Property Services,Materials and Consumables,07/03/2023,30003835,209.81 ,Princebuild LTD
Boston Borough Council,http://statistics.data.gov.uk/id/local-authority/32UB,Property Services,Materials and Consumables,07/03/2023,30003837,941.30 ,Princebuild LTD
Boston Borough Council,http://statistics.data.gov.uk/id/local-authority/32UB,Property Services,Materials and Consumables,07/03/2023,30003840,286.05 ,Princebuild LTD
Boston Borough Council,http://statistics.data.gov.uk/id/local-authority/32UB,Property Services,Materials and Consumables,07/03/2023,30003841,610.62 ,Princebuild LTD
Boston Borough Council,http://statistics.data.gov.uk/id/local-authority/32UB,Property Services,Materials and Consumables,07/03/2023,30003911,250.00 ,GB Security Group
Boston Borough Council,http://statistics.data.gov.uk/id/local-authority/32UB,Property Services,Materials and Consumables,07/03/2023,30003954,880.99 ,Glen Farrow UK LTD
Boston Borough Council,http://statistics.data.gov.uk/id/local-authority/32UB,Strategic Economic Development Projects,Professional Fees,07/03/2023,30003956,"4,500.00 ",Price & Myers
Boston Borough Council,http://statistics.data.gov.uk/id/local-authority/32UB,BTAC,Furniture and Equipment,09/03/2023,30003961,710.00 ,Chris Sellars Groundcare LTD
Boston Borough Council,http://statistics.data.gov.uk/id/local-authority/32UB,Business Transformation,Postages,09/03/2023,30003975,442.98 ,Royal Mail
Boston Borough Council,http://statistics.data.gov.uk/id/local-authority/32UB,Communities,Grants and Contributions to Outside Bodies - No Service Received,09/03/2023,30003941,500.00 ,Swineshead Methodist Church
Boston Borough Council,http://statistics.data.gov.uk/id/local-authority/32UB,Communities,Grants and Contributions to Outside Bodies - No Service Received,09/03/2023,30004125,"6,087.52 ",Clough Building Ltd formerly Brian's Building Services
Boston Borough Council,http://statistics.data.gov.uk/id/local-authority/32UB,Communities,Other Miscellaneous Expenses,09/03/2023,30004107,833.33 ,Boston United FC LTD
Boston Borough Council,http://statistics.data.gov.uk/id/local-authority/32UB,Economic Development,Professional Fees,09/03/2023,30004128,"2,100.00 ",Total Traffic Surveys Ltd
Boston Borough Council,http://statistics.data.gov.uk/id/local-authority/32UB,Environmental Health,Professional and Contractors Fees,09/03/2023,30004066,"1,120.83 ",Pestinator UK LTD
Boston Borough Council,http://statistics.data.gov.uk/id/local-authority/32UB,Information Technology,Telephone and Mobiles,09/03/2023,30003878,348.46 ,Vodafone LTD (Corporate)
Boston Borough Council,http://statistics.data.gov.uk/id/local-authority/32UB,Operations,Agency Staff,09/03/2023,30003949,"2,339.10 ",Comensura LTD
Boston Borough Council,http://statistics.data.gov.uk/id/local-authority/32UB,Operations,Maintenance,09/03/2023,30003920,"5,200.36 ",Chris Sellars Groundcare LTD
Boston Borough Council,http://statistics.data.gov.uk/id/local-authority/32UB,Operations,Vehicle Hire,09/03/2023,30004115,680.00 ,Phil Haines Coaches LTD
Boston Borough Council,http://statistics.data.gov.uk/id/local-authority/32UB,Operations,Vehicle Hire,09/03/2023,30004116,400.00 ,Phil Haines Coaches LTD
Boston Borough Council,http://statistics.data.gov.uk/id/local-authority/32UB,Operations,Vehicle Hire,09/03/2023,30004117,"1,152.00 ",Phil Haines Coaches LTD
Boston Borough Council,http://statistics.data.gov.uk/id/local-authority/32UB,Finance,Postages,13/03/2023,30004428,"1,252.70 ",imail
Boston Borough Council,http://statistics.data.gov.uk/id/local-authority/32UB,Operations,Fuel and Oil,13/03/2023,30004462,"3,622.73 ",Fuelcard Services Ltd
Boston Borough Council,http://statistics.data.gov.uk/id/local-authority/32UB,Operations,Fuel and Oil,13/03/2023,30004464,"2,581.18 ",Fuelcard Services Ltd
Boston Borough Council,http://statistics.data.gov.uk/id/local-authority/32UB,Operations,Fuel and Oil,13/03/2023,30004466,"5,879.22 ",Fuelcard Services Ltd
Boston Borough Council,http://statistics.data.gov.uk/id/local-authority/32UB,Bereavement,Professional and Contractors Fees,14/03/2023,30004108,"1,535.50 ","""personal information redacted"""
Boston Borough Council,http://statistics.data.gov.uk/id/local-authority/32UB,Climate Change,Professional and Contractors Fees,14/03/2023,30003502,525.00 ,The Oyster Partnership Ltd
Boston Borough Council,http://statistics.data.gov.uk/id/local-authority/32UB,Climate Change,Professional and Contractors Fees,14/03/2023,30003503,525.00 ,The Oyster Partnership Ltd
Boston Borough Council,http://statistics.data.gov.uk/id/local-authority/32UB,Climate Change,Professional and Contractors Fees,14/03/2023,30003504,525.00 ,The Oyster Partnership Ltd
Boston Borough Council,http://statistics.data.gov.uk/id/local-authority/32UB,Climate Change,Professional and Contractors Fees,14/03/2023,30003505,525.00 ,The Oyster Partnership Ltd
Boston Borough Council,http://statistics.data.gov.uk/id/local-authority/32UB,Climate Change,Professional and Contractors Fees,14/03/2023,30003506,525.00 ,The Oyster Partnership Ltd
Boston Borough Council,http://statistics.data.gov.uk/id/local-authority/32UB,Climate Change,Professional and Contractors Fees,14/03/2023,30003507,525.00 ,The Oyster Partnership Ltd
Boston Borough Council,http://statistics.data.gov.uk/id/local-authority/32UB,Climate Change,Professional and Contractors Fees,14/03/2023,30003512,512.50 ,The Oyster Partnership Ltd
Boston Borough Council,http://statistics.data.gov.uk/id/local-authority/32UB,Communities,Grants and Contributions to Outside Bodies - No Service Received,14/03/2023,30004167,"4,536.57 ",Princebuild LTD
Boston Borough Council,http://statistics.data.gov.uk/id/local-authority/32UB,Communities,Other Miscellaneous Expenses,14/03/2023,30004043,"1,711.41 ",Boston Borough Council
Boston Borough Council,http://statistics.data.gov.uk/id/local-authority/32UB,Communities,Other Miscellaneous Expenses,14/03/2023,30004046,290.31 ,Boston Borough Council
Boston Borough Council,http://statistics.data.gov.uk/id/local-authority/32UB,Communities,Other Private Contractors,14/03/2023,30003909,"7,148.56 ",Princebuild LTD
Boston Borough Council,http://statistics.data.gov.uk/id/local-authority/32UB,Corporate,Purchase of Software,14/03/2023,30004134,"37,844.00 ",Public Sector Partnership Services LTD
Boston Borough Council,http://statistics.data.gov.uk/id/local-authority/32UB,Economic Development,Professional Fees,14/03/2023,30003951,"81,946.70 ",East Midlands Railway EMR
Boston Borough Council,http://statistics.data.gov.uk/id/local-authority/32UB,Information Technology,Other Communication Costs,14/03/2023,30004103,"1,009.61 ",Nominet
Boston Borough Council,http://statistics.data.gov.uk/id/local-authority/32UB,Leisure,Computer Software Licence Costs,14/03/2023,30004056,"13,702.31 ",Delta Computer Services
Boston Borough Council,http://statistics.data.gov.uk/id/local-authority/32UB,Leisure,Gas,14/03/2023,30003907,932.60 ,SDL Biomass LTD
Boston Borough Council,http://statistics.data.gov.uk/id/local-authority/32UB,Operations,Agency Staff,14/03/2023,30004135,294.75 ,Workforce (Boston) LTD
Boston Borough Council,http://statistics.data.gov.uk/id/local-authority/32UB,Planning,Professional and Contractors Fees,14/03/2023,30004137,"1,062.50 ",DPA Planning Ltd
Boston Borough Council,http://statistics.data.gov.uk/id/local-authority/32UB,Property Services,Agency Staff,14/03/2023,30004135,294.75 ,Workforce (Boston) LTD
Boston Borough Council,http://statistics.data.gov.uk/id/local-authority/32UB,Property Services,Materials and Consumables,14/03/2023,30003838,354.20 ,Princebuild LTD
Boston Borough Council,http://statistics.data.gov.uk/id/local-authority/32UB,Property Services,Materials and Consumables,14/03/2023,30004081,241.65 ,Nerg
Boston Borough Council,http://statistics.data.gov.uk/id/local-authority/32UB,Property Services,Materials and Consumables,14/03/2023,30004084,601.60 ,Paperwork (UK) LTD
Boston Borough Council,http://statistics.data.gov.uk/id/local-authority/32UB,Property Services,Materials and Consumables,14/03/2023,30004093,"4,174.00 ",Eon UK Energy Services
Boston Borough Council,http://statistics.data.gov.uk/id/local-authority/32UB,Property Services,Materials and Consumables,14/03/2023,30004094,"1,180.80 ",Paperwork (UK) LTD
Boston Borough Council,http://statistics.data.gov.uk/id/local-authority/32UB,Property Services,Materials and Consumables,14/03/2023,30004099,250.00 ,GB Security Group
Boston Borough Council,http://statistics.data.gov.uk/id/local-authority/32UB,Property Services,Materials and Consumables,14/03/2023,30004100,250.00 ,GB Security Group
Boston Borough Council,http://statistics.data.gov.uk/id/local-authority/32UB,Property Services,Materials and Consumables,14/03/2023,30004131,"1,425.00 ","""personal information redacted"""
Boston Borough Council,http://statistics.data.gov.uk/id/local-authority/32UB,Strategic Economic Development Projects,Professional Fees,14/03/2023,30004140,"2,610.00 ",Park Avenue Recruitment
Boston Borough Council,http://statistics.data.gov.uk/id/local-authority/32UB,Strategic Economic Development Projects,Professional Fees,14/03/2023,30004144,600.00 ,Estrada Ecology Ltd
Boston Borough Council,http://statistics.data.gov.uk/id/local-authority/32UB,Strategic Economic Development Projects,Professional Fees,14/03/2023,30004159,"2,610.00 ",Park Avenue Recruitment
Boston Borough Council,http://statistics.data.gov.uk/id/local-authority/32UB,Business Transformation,Postages,15/03/2023,30004182,483.36 ,Royal Mail
Boston Borough Council,http://statistics.data.gov.uk/id/local-authority/32UB,Leisure,Catering (Non-Payroll),15/03/2023,30004426,537.89 ,Booker
Boston Borough Council,http://statistics.data.gov.uk/id/local-authority/32UB,BTAC,Other Miscellaneous Expenses,16/03/2023,30003896,"2,400.00 ","""personal information redacted"""
Boston Borough Council,http://statistics.data.gov.uk/id/local-authority/32UB,Business Transformation,Postages,16/03/2023,30004032,472.30 ,Royal Mail
Boston Borough Council,http://statistics.data.gov.uk/id/local-authority/32UB,Climate Change,Professional and Contractors Fees,16/03/2023,30004145,525.00 ,The Oyster Partnership Ltd
Boston Borough Council,http://statistics.data.gov.uk/id/local-authority/32UB,Climate Change,Professional and Contractors Fees,16/03/2023,30004146,512.50 ,The Oyster Partnership Ltd
Boston Borough Council,http://statistics.data.gov.uk/id/local-authority/32UB,Communities,Bed and Breakfast Accommodation (Homelessness Service),16/03/2023,30004070,420.00 ,Living Haven Limited T/A The Saffron Hotel
Boston Borough Council,http://statistics.data.gov.uk/id/local-authority/32UB,Communities,Grants and Contributions to Outside Bodies - No Service Received,16/03/2023,30004126,260.00 ,Acis Homeplus LTD
Boston Borough Council,http://statistics.data.gov.uk/id/local-authority/32UB,"Democratic, Civic & Electoral Services",External Printing and Design Costs,16/03/2023,30004127,"2,500.00 ",Roadvert LTD
Boston Borough Council,http://statistics.data.gov.uk/id/local-authority/32UB,Finance,Other Miscellaneous Expenses,16/03/2023,30004932,"16,595.27 ",Lloyds Bank Commerical Finance LTD (P Card)
Boston Borough Council,http://statistics.data.gov.uk/id/local-authority/32UB,Operations,Fuel and Oil,16/03/2023,30004065,"1,933.51 ",Pace Fuelcare
Boston Borough Council,http://statistics.data.gov.uk/id/local-authority/32UB,Operations,Maintenance,16/03/2023,30003892,454.63 ,Specialist Fleet Services LTD
Boston Borough Council,http://statistics.data.gov.uk/id/local-authority/32UB,Operations,Maintenance,16/03/2023,30003893,979.64 ,Specialist Fleet Services LTD
Boston Borough Council,http://statistics.data.gov.uk/id/local-authority/32UB,Operations,Other Communication Costs,16/03/2023,30004201,"6,440.00 ",The Boston Sign Company
Boston Borough Council,http://statistics.data.gov.uk/id/local-authority/32UB,Planning,Planning Application Fees,16/03/2023,30003870,256.00 ,Planning Portal Quest LTD
Boston Borough Council,http://statistics.data.gov.uk/id/local-authority/32UB,Property Services,Fees and Charges General,16/03/2023,30004175,"2,316.00 ",Savoy Cinemas LTD
Boston Borough Council,http://statistics.data.gov.uk/id/local-authority/32UB,Property Services,Fees and Charges General,16/03/2023,30004176,"1,852.20 ",Savoy Cinemas LTD
Boston Borough Council,http://statistics.data.gov.uk/id/local-authority/32UB,Property Services,Fees and Charges General,16/03/2023,30004177,904.70 ,Savoy Cinemas LTD
Boston Borough Council,http://statistics.data.gov.uk/id/local-authority/32UB,Property Services,Materials and Consumables,16/03/2023,30003955,"2,540.00 ",BDA Surveying LTD
Boston Borough Council,http://statistics.data.gov.uk/id/local-authority/32UB,Property Services,Materials and Consumables,16/03/2023,30004086,249.00 ,Periam and Williamson Ltd
Boston Borough Council,http://statistics.data.gov.uk/id/local-authority/32UB,Strategic Economic Development Projects,Professional and Contractors Fees,16/03/2023,30004186,825.00 ,The Engaging People Company
Boston Borough Council,http://statistics.data.gov.uk/id/local-authority/32UB,Bereavement,Gas,17/03/2023,30004431,586.51 ,Espo Gas and Electricity
Boston Borough Council,http://statistics.data.gov.uk/id/local-authority/32UB,Bereavement,Gas,17/03/2023,30004432,"1,999.99 ",Espo Gas and Electricity
Boston Borough Council,http://statistics.data.gov.uk/id/local-authority/32UB,Communities,Gas,17/03/2023,30004437,214.58 ,Espo Gas and Electricity
Boston Borough Council,http://statistics.data.gov.uk/id/local-authority/32UB,Heritage,Gas,17/03/2023,30004435,"1,148.58 ",Espo Gas and Electricity
Boston Borough Council,http://statistics.data.gov.uk/id/local-authority/32UB,Land Charges & Licencing,Professional and Contractors Fees,17/03/2023,30004427,266.00 ,Disclosure and Barring Service
Boston Borough Council,http://statistics.data.gov.uk/id/local-authority/32UB,Leisure,Gas,17/03/2023,30004433,"4,677.36 ",Espo Gas and Electricity
Boston Borough Council,http://statistics.data.gov.uk/id/local-authority/32UB,Property Services,Gas,17/03/2023,30004434,"1,546.78 ",Espo Gas and Electricity
Boston Borough Council,http://statistics.data.gov.uk/id/local-authority/32UB,Council Tax & Benefits,Business Rates - Contribution to Surplus/Deficit,20/03/2023,30004584,"-298,232.00 ",Lincolnshire County Council
Boston Borough Council,http://statistics.data.gov.uk/id/local-authority/32UB,Council Tax & Benefits,Business Rates - Share of Income Central Government,20/03/2023,30004584,"742,652.00 ",Lincolnshire County Council
Boston Borough Council,http://statistics.data.gov.uk/id/local-authority/32UB,Finance,Banking Charges,20/03/2023,30004574,735.55 ,Bottomline
Boston Borough Council,http://statistics.data.gov.uk/id/local-authority/32UB,Finance,Business Rates - Contribution to Surplus/Deficit,20/03/2023,30004584,"-298,232.00 ",Lincolnshire County Council
Boston Borough Council,http://statistics.data.gov.uk/id/local-authority/32UB,Finance,Business Rates - Share of Income Central Government,20/03/2023,30004584,"742,652.00 ",Lincolnshire County Council
Boston Borough Council,http://statistics.data.gov.uk/id/local-authority/32UB,Finance,Postages,20/03/2023,30004580,350.14 ,imail
Boston Borough Council,http://statistics.data.gov.uk/id/local-authority/32UB,Grant Payments,Non-Ringfenced Government Grants - RSG,20/03/2023,30004576,"411,255.00 ",Lincolnshire County Council
Boston Borough Council,http://statistics.data.gov.uk/id/local-authority/32UB,Operations,Fuel and Oil,20/03/2023,30004637,"5,916.24 ",Fuelcard Services Ltd
Boston Borough Council,http://statistics.data.gov.uk/id/local-authority/32UB,Operations,Fuel and Oil,20/03/2023,30004638,249.96 ,Fuelcard Services Ltd
Boston Borough Council,http://statistics.data.gov.uk/id/local-authority/32UB,BTAC,Materials and Consumables,21/03/2023,30004147,"1,048.56 ",J Carr and Son LTD
Boston Borough Council,http://statistics.data.gov.uk/id/local-authority/32UB,Communities,Bed and Breakfast Accommodation (Homelessness Service),21/03/2023,30004231,871.50 ,Living Haven Limited T/A The Saffron Hotel
Boston Borough Council,http://statistics.data.gov.uk/id/local-authority/32UB,Communities,Bed and Breakfast Accommodation (Homelessness Service),21/03/2023,30004325,448.00 ,AA Properties Boston LTD T/A Tunnard House
Boston Borough Council,http://statistics.data.gov.uk/id/local-authority/32UB,Communities,Grants and Contributions - Where a Service is Received,21/03/2023,30004185,"3,655.00 ",Restore Church Boston
Boston Borough Council,http://statistics.data.gov.uk/id/local-authority/32UB,Communities,Grants and Contributions to Outside Bodies - No Service Received,21/03/2023,30004313,"27,217.20 ",Warics LTD
Boston Borough Council,http://statistics.data.gov.uk/id/local-authority/32UB,Communities,Grants and Contributions to Outside Bodies - No Service Received,21/03/2023,30004350,500.00 ,Old Leak Community Hub
Boston Borough Council,http://statistics.data.gov.uk/id/local-authority/32UB,Communities,Grants and Contributions to Outside Bodies - No Service Received,21/03/2023,30004357,260.00 ,Baptist Building and Roofing LTD
Boston Borough Council,http://statistics.data.gov.uk/id/local-authority/32UB,Communities,Other Private Contractors,21/03/2023,30004190,350.00 ,Chris Vaughn Photography
Boston Borough Council,http://statistics.data.gov.uk/id/local-authority/32UB,Communities,Rent Payments,21/03/2023,30004158,"15,600.00 ",Restore Church Boston
Boston Borough Council,http://statistics.data.gov.uk/id/local-authority/32UB,Communities,Rent Payments,21/03/2023,30004366,"2,775.00 ",Boston United FC LTD
Boston Borough Council,http://statistics.data.gov.uk/id/local-authority/32UB,Credit Control,Professional and Contractors Fees,21/03/2023,30003924,760.00 ,Inform CPI LTD
Boston Borough Council,http://statistics.data.gov.uk/id/local-authority/32UB,Economic Development,Professional and Contractors Fees,21/03/2023,30004329,"1,642.68 ",Destination Lincolnshire Community Interest Company
Boston Borough Council,http://statistics.data.gov.uk/id/local-authority/32UB,Economic Development,Professional Fees,21/03/2023,30004356,"17,975.98 ",Boston College
Boston Borough Council,http://statistics.data.gov.uk/id/local-authority/32UB,Economic Development,Works to Buildings (Main Contractor),21/03/2023,30004355,"21,902.58 ",Central Bank St Botolphs Church
Boston Borough Council,http://statistics.data.gov.uk/id/local-authority/32UB,Environmental Health,Staff Training Expenses (Non-Payroll),21/03/2023,30003902,225.00 ,ABC Food Law LTD
Boston Borough Council,http://statistics.data.gov.uk/id/local-authority/32UB,Finance,Electricity,21/03/2023,30004787,"59,357.28 ",TotalEnergies
Boston Borough Council,http://statistics.data.gov.uk/id/local-authority/32UB,Finance,Other local authorities,21/03/2023,30004178,"4,706.78 ",Borough Council of Kings Lynn and West Norfolk
Boston Borough Council,http://statistics.data.gov.uk/id/local-authority/32UB,Finance,Public Sector Partnership Services,21/03/2023,30004351,"213,486.59 ",Public Sector Partnership Services LTD
Boston Borough Council,http://statistics.data.gov.uk/id/local-authority/32UB,Heritage,Water and Sewerage Charges,21/03/2023,30004606,780.07 ,Wave
Boston Borough Council,http://statistics.data.gov.uk/id/local-authority/32UB,Information Technology,Computer Software Licence Costs,21/03/2023,30003960,"11,652.48 ",Hyland UK Operations Ltd (Alfresco)
Boston Borough Council,http://statistics.data.gov.uk/id/local-authority/32UB,Leisure,Materials and Consumables,21/03/2023,30003966,"1,272.88 ",Univar Solutions BV
Boston Borough Council,http://statistics.data.gov.uk/id/local-authority/32UB,Leisure,Materials and Consumables,21/03/2023,30003967,"1,270.74 ",Univar Solutions BV
Boston Borough Council,http://statistics.data.gov.uk/id/local-authority/32UB,Leisure,Other Miscellaneous Expenses,21/03/2023,30004344,296.76 ,NVCS LTD
Boston Borough Council,http://statistics.data.gov.uk/id/local-authority/32UB,Operations,Agency Staff,21/03/2023,30004124,"2,645.37 ",Comensura LTD
Boston Borough Council,http://statistics.data.gov.uk/id/local-authority/32UB,Operations,Agency Staff,21/03/2023,30004200,393.00 ,Workforce (Boston) LTD
Boston Borough Council,http://statistics.data.gov.uk/id/local-authority/32UB,Operations,Maintenance,21/03/2023,30003904,"1,383.46 ",Specialist Fleet Services LTD
Boston Borough Council,http://statistics.data.gov.uk/id/local-authority/32UB,Operations,Maintenance,21/03/2023,30003905,797.55 ,Specialist Fleet Services LTD
Boston Borough Council,http://statistics.data.gov.uk/id/local-authority/32UB,Operations,Maintenance,21/03/2023,30004106,358.77 ,Specialist Fleet Services LTD
Boston Borough Council,http://statistics.data.gov.uk/id/local-authority/32UB,Operations,Maintenance,21/03/2023,30004112,"2,688.88 ",Chris Sellars Groundcare LTD
Boston Borough Council,http://statistics.data.gov.uk/id/local-authority/32UB,Operations,Maintenance,21/03/2023,30004132,"8,190.00 ",Peter Smith Commercials LTD
Boston Borough Council,http://statistics.data.gov.uk/id/local-authority/32UB,Operations,Other Private Contractors,21/03/2023,30004172,240.00 ,SG Services (Boston) LTD
Boston Borough Council,http://statistics.data.gov.uk/id/local-authority/32UB,Operations,Other Private Contractors,21/03/2023,30004173,240.00 ,SG Services (Boston) LTD
Boston Borough Council,http://statistics.data.gov.uk/id/local-authority/32UB,Operations,Other Private Contractors,21/03/2023,30004193,"6,000.00 ",Enfortis Limited
Boston Borough Council,http://statistics.data.gov.uk/id/local-authority/32UB,Operations,Other Private Contractors,21/03/2023,30004260,695.00 ,MCP Environmental LLP
Boston Borough Council,http://statistics.data.gov.uk/id/local-authority/32UB,Operations,Tyres,21/03/2023,30004184,"2,856.07 ",BA Bush and Son LTD
Boston Borough Council,http://statistics.data.gov.uk/id/local-authority/32UB,Operations,Vehicle Hire,21/03/2023,30004118,680.00 ,Phil Haines Coaches LTD
Boston Borough Council,http://statistics.data.gov.uk/id/local-authority/32UB,Planning,Other Miscellaneous Expenses,21/03/2023,30003957,409.06 ,Probrand Limited
Boston Borough Council,http://statistics.data.gov.uk/id/local-authority/32UB,Property Services,Agency Staff,21/03/2023,30004200,393.00 ,Workforce (Boston) LTD
Boston Borough Council,http://statistics.data.gov.uk/id/local-authority/32UB,Property Services,Gas,21/03/2023,30004194,"16,466.27 ",Calor Gas LTD
Boston Borough Council,http://statistics.data.gov.uk/id/local-authority/32UB,Property Services,Materials and Consumables,21/03/2023,30004265,"1,395.50 ",Princebuild LTD
Boston Borough Council,http://statistics.data.gov.uk/id/local-authority/32UB,Property Services,Materials and Consumables,21/03/2023,30004266,"2,151.14 ",Princebuild LTD
Boston Borough Council,http://statistics.data.gov.uk/id/local-authority/32UB,Property Services,Materials and Consumables,21/03/2023,30004268,"2,715.34 ",Princebuild LTD
Boston Borough Council,http://statistics.data.gov.uk/id/local-authority/32UB,Property Services,Materials and Consumables,21/03/2023,30004269,496.29 ,Princebuild LTD
Boston Borough Council,http://statistics.data.gov.uk/id/local-authority/32UB,Property Services,Materials and Consumables,21/03/2023,30004274,"2,833.97 ",Princebuild LTD
Boston Borough Council,http://statistics.data.gov.uk/id/local-authority/32UB,Property Services,Materials and Consumables,21/03/2023,30004276,249.75 ,Princebuild LTD
Boston Borough Council,http://statistics.data.gov.uk/id/local-authority/32UB,Property Services,Materials and Consumables,21/03/2023,30004279,"1,397.07 ",Princebuild LTD
Boston Borough Council,http://statistics.data.gov.uk/id/local-authority/32UB,Property Services,Materials and Consumables,21/03/2023,30004280,255.17 ,Princebuild LTD
Boston Borough Council,http://statistics.data.gov.uk/id/local-authority/32UB,Property Services,Materials and Consumables,21/03/2023,30004281,227.70 ,Princebuild LTD
Boston Borough Council,http://statistics.data.gov.uk/id/local-authority/32UB,Strategic Economic Development Projects,Professional Fees,21/03/2023,30004111,"2,899.00 ",Marrons Planning
Boston Borough Council,http://statistics.data.gov.uk/id/local-authority/32UB,Strategic Economic Development Projects,Professional Fees,21/03/2023,30004189,"2,349.00 ",Park Avenue Recruitment
Boston Borough Council,http://statistics.data.gov.uk/id/local-authority/32UB,Townscape Heritage,Other Miscellaneous Expenses,21/03/2023,30004327,"1,250.00 ",University of Lincoln
Boston Borough Council,http://statistics.data.gov.uk/id/local-authority/32UB,Bereavement,Purchase Of Goods For Resale,23/03/2023,30004061,210.00 ,The Yaboo Co LTD (Wesley Media)
Boston Borough Council,http://statistics.data.gov.uk/id/local-authority/32UB,Bereavement,Purchase Of Goods For Resale,23/03/2023,30004064,235.00 ,The Yaboo Co LTD (Wesley Media)
Boston Borough Council,http://statistics.data.gov.uk/id/local-authority/32UB,Bereavement,Purchase Of Goods For Resale,23/03/2023,30004136,"5,148.80 ",Granart Memorials
Boston Borough Council,http://statistics.data.gov.uk/id/local-authority/32UB,Business Transformation,Postages,23/03/2023,30004202,360.35 ,Royal Mail
Boston Borough Council,http://statistics.data.gov.uk/id/local-authority/32UB,Communities,Bed and Breakfast Accommodation (Homelessness Service),23/03/2023,30004078,420.00 ,Living Haven Limited T/A The Saffron Hotel
Boston Borough Council,http://statistics.data.gov.uk/id/local-authority/32UB,Communities,Bed and Breakfast Accommodation (Homelessness Service),23/03/2023,30004494,640.00 ,AA Properties Boston LTD T/A Tunnard House
Boston Borough Council,http://statistics.data.gov.uk/id/local-authority/32UB,Communities,Grants and Contributions - Where a Service is Received,23/03/2023,30004330,500.00 ,Police and Crime Commissioner For Lincolnshire
Boston Borough Council,http://statistics.data.gov.uk/id/local-authority/32UB,Communities,"Purchase of Plant, Machinery and Equipment",23/03/2023,30004110,"2,475.00 ",Broadgate Homes Limited
Boston Borough Council,http://statistics.data.gov.uk/id/local-authority/32UB,"Democratic, Civic & Electoral Services",Staff Training Expenses (Non-Payroll),23/03/2023,30003972,267.00 ,Association of Electoral Administrators
Boston Borough Council,http://statistics.data.gov.uk/id/local-authority/32UB,Economic Development,Catering (Non-Payroll),23/03/2023,30004204,"3,799.74 ",House of Lords
Boston Borough Council,http://statistics.data.gov.uk/id/local-authority/32UB,Economic Development,Professional and Contractors Fees,23/03/2023,30004142,"5,739.00 ",Infrastructure Matters LTD
Boston Borough Council,http://statistics.data.gov.uk/id/local-authority/32UB,External Communications,Other Private Contractors,23/03/2023,30004042,"1,075.62 ",thebigword
Boston Borough Council,http://statistics.data.gov.uk/id/local-authority/32UB,Finance,Professional and Contractors Fees,23/03/2023,30004053,272.80 ,Data Shredders LTD
Boston Borough Council,http://statistics.data.gov.uk/id/local-authority/32UB,Finance,Subscriptions to Organisations and Other Bodies,23/03/2023,30004368,"4,652.00 ",LG Futures
Boston Borough Council,http://statistics.data.gov.uk/id/local-authority/32UB,Heritage,Subscriptions to Organisations and Other Bodies,23/03/2023,30004181,323.62 ,Visitengland Assessment Services
Boston Borough Council,http://statistics.data.gov.uk/id/local-authority/32UB,Human Resources,Employee Related Schemes (Non-Payroll),23/03/2023,30003973,263.50 ,Terryberry Ltd
Boston Borough Council,http://statistics.data.gov.uk/id/local-authority/32UB,Information Technology,Computer Hardware Purchase,23/03/2023,30004059,793.98 ,Example IT
Boston Borough Council,http://statistics.data.gov.uk/id/local-authority/32UB,Information Technology,Computer Software Licence Costs,23/03/2023,30003964,"3,540.00 ",Goss Interactive LTD
Boston Borough Council,http://statistics.data.gov.uk/id/local-authority/32UB,Land Charges & Licencing,Other Private Contractors,23/03/2023,30004331,"2,815.00 ",Lincolnshire County Council
Boston Borough Council,http://statistics.data.gov.uk/id/local-authority/32UB,Legal Services,Legal Fees,23/03/2023,30004187,"1,911.00 ",Freeths LLP
Boston Borough Council,http://statistics.data.gov.uk/id/local-authority/32UB,Operations,Agency Staff,23/03/2023,30004315,"2,838.63 ",Comensura LTD
Boston Borough Council,http://statistics.data.gov.uk/id/local-authority/32UB,Operations,Furniture and Equipment,23/03/2023,30004037,281.67 ,Portable offices (Hire) LTD
Boston Borough Council,http://statistics.data.gov.uk/id/local-authority/32UB,Operations,Maintenance,23/03/2023,30004039,232.47 ,Specialist Fleet Services LTD
Boston Borough Council,http://statistics.data.gov.uk/id/local-authority/32UB,Operations,Maintenance,23/03/2023,30004105,566.58 ,Specialist Fleet Services LTD
Boston Borough Council,http://statistics.data.gov.uk/id/local-authority/32UB,Operations,Maintenance,23/03/2023,30004417,350.00 ,Peter Smith Commercials LTD
Boston Borough Council,http://statistics.data.gov.uk/id/local-authority/32UB,Operations,Maintenance,23/03/2023,30004424,"5,680.00 ",Peter Smith Commercials LTD
Boston Borough Council,http://statistics.data.gov.uk/id/local-authority/32UB,Operations,Materials and Consumables,23/03/2023,30004067,"3,324.42 ",PMC Polythene LTD
Boston Borough Council,http://statistics.data.gov.uk/id/local-authority/32UB,Operations,Other Private Contractors,23/03/2023,30004153,335.00 ,MCP Environmental LLP
Boston Borough Council,http://statistics.data.gov.uk/id/local-authority/32UB,Planning,Legal Fees,23/03/2023,30004495,"1,750.00 ",CMS Cameron McKenna Nabarro Olswang LLP
Boston Borough Council,http://statistics.data.gov.uk/id/local-authority/32UB,Property Services,External Audit Fees,23/03/2023,30004085,"1,850.00 ",Kier Business Services LTD
Boston Borough Council,http://statistics.data.gov.uk/id/local-authority/32UB,Property Services,Materials and Consumables,23/03/2023,30004374,"1,258.14 ",Craftwork Engineering and Supplies
Boston Borough Council,http://statistics.data.gov.uk/id/local-authority/32UB,Property Services,Materials and Consumables,23/03/2023,30004378,378.89 ,Periam and Williamson Ltd
Boston Borough Council,http://statistics.data.gov.uk/id/local-authority/32UB,Property Services,Professional and Contractors Fees,23/03/2023,30004235,423.58 ,Chipside LTD
Boston Borough Council,http://statistics.data.gov.uk/id/local-authority/32UB,Strategic Economic Development Projects,Employee Professional Subscriptions (Non-Payroll),23/03/2023,30004461,"2,610.00 ",Park Avenue Recruitment
Boston Borough Council,http://statistics.data.gov.uk/id/local-authority/32UB,Bereavement,Internet Broadband Payments,28/03/2023,30004038,47.79 ,Multidata LTD
Boston Borough Council,http://statistics.data.gov.uk/id/local-authority/32UB,Bereavement,Professional and Contractors Fees,28/03/2023,30003742,333.00 ,Sutterton Surgery - Dr Stephen Hughes
Boston Borough Council,http://statistics.data.gov.uk/id/local-authority/32UB,Bereavement,Professional and Contractors Fees,28/03/2023,30003743,"1,332.00 ","""personal information redacted"""
Boston Borough Council,http://statistics.data.gov.uk/id/local-authority/32UB,Bereavement,Purchase Of Goods For Resale,28/03/2023,30003913,211.00 ,Granart Memorials
Boston Borough Council,http://statistics.data.gov.uk/id/local-authority/32UB,Bereavement,Purchase Of Goods For Resale,28/03/2023,30004062,355.00 ,The Yaboo Co LTD (Wesley Media)
Boston Borough Council,http://statistics.data.gov.uk/id/local-authority/32UB,Bereavement,Purchase Of Goods For Resale,28/03/2023,30004063,330.00 ,The Yaboo Co LTD (Wesley Media)
Boston Borough Council,http://statistics.data.gov.uk/id/local-authority/32UB,Building Control,Other Private Contractors,28/03/2023,30004405,"7,963.54 ",Foundations and Buildings LTD
Boston Borough Council,http://statistics.data.gov.uk/id/local-authority/32UB,Climate Change,Professional and Contractors Fees,28/03/2023,30004463,525.00 ,The Oyster Partnership Ltd
Boston Borough Council,http://statistics.data.gov.uk/id/local-authority/32UB,Climate Change,Professional and Contractors Fees,28/03/2023,30004465,525.00 ,The Oyster Partnership Ltd
Boston Borough Council,http://statistics.data.gov.uk/id/local-authority/32UB,Climate Change,Professional and Contractors Fees,28/03/2023,30004467,525.00 ,The Oyster Partnership Ltd
Boston Borough Council,http://statistics.data.gov.uk/id/local-authority/32UB,Communities,Bed and Breakfast Accommodation (Homelessness Service),28/03/2023,30004484,531.36 ,Boston Borough Council
Boston Borough Council,http://statistics.data.gov.uk/id/local-authority/32UB,Communities,Bed and Breakfast Accommodation (Homelessness Service),28/03/2023,30004485,694.17 ,Boston Borough Council
Boston Borough Council,http://statistics.data.gov.uk/id/local-authority/32UB,Communities,Bed and Breakfast Accommodation (Homelessness Service),28/03/2023,30004486,"3,210.54 ",Boston Borough Council
Boston Borough Council,http://statistics.data.gov.uk/id/local-authority/32UB,Communities,Bed and Breakfast Accommodation (Homelessness Service),28/03/2023,30004506,"9,230.00 ",The Lord Grey Hotel t/a The Lord Grey Ltd
Boston Borough Council,http://statistics.data.gov.uk/id/local-authority/32UB,Communities,Furniture and Equipment,28/03/2023,30004183,"4,320.00 ",Videcom Security LTD
Boston Borough Council,http://statistics.data.gov.uk/id/local-authority/32UB,Communities,Other Miscellaneous Expenses,28/03/2023,30004507,"3,700.00 ",Matt Griffin Carpets
Boston Borough Council,http://statistics.data.gov.uk/id/local-authority/32UB,Communities,"Purchase of Plant, Machinery and Equipment",28/03/2023,30004141,"3,281.41 ",Videcom Security LTD
Boston Borough Council,http://statistics.data.gov.uk/id/local-authority/32UB,Communities,"Purchase of Plant, Machinery and Equipment",28/03/2023,30004188,"163,458.07 ",Videcom Security LTD
Boston Borough Council,http://statistics.data.gov.uk/id/local-authority/32UB,"Democratic, Civic & Electoral Services",Computer Hardware Purchase,28/03/2023,30004139,608.21 ,Example IT
Boston Borough Council,http://statistics.data.gov.uk/id/local-authority/32UB,"Democratic, Civic & Electoral Services",Rent Payments,28/03/2023,30004041,535.00 ,Boston United FC LTD
Boston Borough Council,http://statistics.data.gov.uk/id/local-authority/32UB,"Democratic, Civic & Electoral Services",Stationery,28/03/2023,30003933,"1,174.36 ",Shaw and Sons LTD
Boston Borough Council,http://statistics.data.gov.uk/id/local-authority/32UB,Environmental Health,Subscriptions to Organisations and Other Bodies,28/03/2023,30004143,392.04 ,Association of Port Health Authorities
Boston Borough Council,http://statistics.data.gov.uk/id/local-authority/32UB,Finance,External Audit Fees,28/03/2023,30004583,"10,040.00 ",Mazars LLP
Boston Borough Council,http://statistics.data.gov.uk/id/local-authority/32UB,Finance,Postages,28/03/2023,30004716,332.52 ,imail
Boston Borough Council,http://statistics.data.gov.uk/id/local-authority/32UB,Finance,Professional and Contractors Fees,28/03/2023,30004488,"15,750.00 ",Lincolnshire County Council
Boston Borough Council,http://statistics.data.gov.uk/id/local-authority/32UB,Heritage,Internet Broadband Payments,28/03/2023,30004038,108.70 ,Multidata LTD
Boston Borough Council,http://statistics.data.gov.uk/id/local-authority/32UB,Heritage,Subscriptions to Organisations and Other Bodies,28/03/2023,30004328,229.00 ,Chilli Media and Publishing LTD
Boston Borough Council,http://statistics.data.gov.uk/id/local-authority/32UB,Leisure,Gas,28/03/2023,30004160,"1,148.80 ",SDL Biomass LTD
Boston Borough Council,http://statistics.data.gov.uk/id/local-authority/32UB,Leisure,Internet Broadband Payments,28/03/2023,30004038,368.00 ,Multidata LTD
Boston Borough Council,http://statistics.data.gov.uk/id/local-authority/32UB,Operations,Agency Staff,28/03/2023,30004473,393.00 ,Workforce (Boston) LTD
Boston Borough Council,http://statistics.data.gov.uk/id/local-authority/32UB,Operations,Maintenance,28/03/2023,30004497,"1,289.86 ",Chris Sellars Groundcare LTD
Boston Borough Council,http://statistics.data.gov.uk/id/local-authority/32UB,Operations,Materials and Consumables,28/03/2023,30004068,"6,997.20 ",PMC Polythene LTD
Boston Borough Council,http://statistics.data.gov.uk/id/local-authority/32UB,Operations,Other Miscellaneous Expenses,28/03/2023,30004508,280.00 ,SG Services (Boston) LTD
Boston Borough Council,http://statistics.data.gov.uk/id/local-authority/32UB,Operations,Other Private Contractors,28/03/2023,30004510,240.00 ,SG Services (Boston) LTD
Boston Borough Council,http://statistics.data.gov.uk/id/local-authority/32UB,Operations,Other Private Contractors,28/03/2023,30004511,240.00 ,SG Services (Boston) LTD
Boston Borough Council,http://statistics.data.gov.uk/id/local-authority/32UB,Operations,Transport Insurance excess,28/03/2023,30004138,"2,065.08 ",Specialist Fleet Services LTD
Boston Borough Council,http://statistics.data.gov.uk/id/local-authority/32UB,Planning,Furniture and Equipment,28/03/2023,30004113,"1,639.74 ",Probrand Limited
Boston Borough Council,http://statistics.data.gov.uk/id/local-authority/32UB,Planning,Professional and Contractors Fees,28/03/2023,30004496,"8,844.55 ",Thomson Environmental Consultants Ltd
Boston Borough Council,http://statistics.data.gov.uk/id/local-authority/32UB,Property Services,Agency Staff,28/03/2023,30004228,935.85 ,MPD FM (UK) Limited
Boston Borough Council,http://statistics.data.gov.uk/id/local-authority/32UB,Property Services,Agency Staff,28/03/2023,30004229,"6,622.55 ",MPD FM (UK) Limited
Boston Borough Council,http://statistics.data.gov.uk/id/local-authority/32UB,Property Services,Agency Staff,28/03/2023,30004473,393.00 ,Workforce (Boston) LTD
Boston Borough Council,http://statistics.data.gov.uk/id/local-authority/32UB,Property Services,Fees and Charges General,28/03/2023,30004514,"2,002.30 ",Savoy Cinemas LTD
Boston Borough Council,http://statistics.data.gov.uk/id/local-authority/32UB,Property Services,Fees and Charges General,28/03/2023,30004529,"1,668.70 ",Savoy Cinemas LTD
Boston Borough Council,http://statistics.data.gov.uk/id/local-authority/32UB,Property Services,Materials and Consumables,28/03/2023,30004450,"3,839.00 ",Eon UK Energy Services
Boston Borough Council,http://statistics.data.gov.uk/id/local-authority/32UB,Property Services,Materials and Consumables,28/03/2023,30004456,"4,028.25 ",C G Godfrey LTD
Boston Borough Council,http://statistics.data.gov.uk/id/local-authority/32UB,Property Services,Materials and Consumables,28/03/2023,30004538,"15,875.00 ",Jackson Lift Group
Boston Borough Council,http://statistics.data.gov.uk/id/local-authority/32UB,Property Services,Materials and Consumables,28/03/2023,30004540,233.00 ,KWC DVS Ltd
Boston Borough Council,http://statistics.data.gov.uk/id/local-authority/32UB,Property Services,Materials and Consumables,28/03/2023,30004604,"3,778.00 ",C G Godfrey LTD
Boston Borough Council,http://statistics.data.gov.uk/id/local-authority/32UB,Property Services,Other Private Contractors,28/03/2023,30004528,"1,143.12 ",Kings Armoured Security Services LTD
Boston Borough Council,http://statistics.data.gov.uk/id/local-authority/32UB,Property Services,Staff Training Expenses (Non-Payroll),28/03/2023,30004114,309.00 ,District Council'S Network
Boston Borough Council,http://statistics.data.gov.uk/id/local-authority/32UB,Town Centre,Staff Training Expenses (Non-Payroll),28/03/2023,30004114,309.00 ,District Council'S Network
Boston Borough Council,http://statistics.data.gov.uk/id/local-authority/32UB,Information Technology,Telephone and Mobiles,30/03/2023,30004799,"2,936.18 ",Kerv
Boston Borough Council,http://statistics.data.gov.uk/id/local-authority/32UB,Operations,Fuel and Oil,30/03/2023,30004821,390.19 ,Fuelcard Services Ltd
Boston Borough Council,http://statistics.data.gov.uk/id/local-authority/32UB,Operations,Fuel and Oil,30/03/2023,30004822,"5,977.26 ",Fuelcard Services Ltd
Boston Borough Council,http://statistics.data.gov.uk/id/local-authority/32UB,Bereavement,Other agencies,31/03/2023,30004693,"25,928.00 ",Crematoria Abatement of Mercury Emissions Organisation LTD
Boston Borough Council,http://statistics.data.gov.uk/id/local-authority/32UB,Building Control,Other Private Contractors,31/03/2023,30004376,"2,183.90 ",District Surveyors Association LTD T/A Labc
Boston Borough Council,http://statistics.data.gov.uk/id/local-authority/32UB,Building Control,Other Private Contractors,31/03/2023,30004403,"1,829.50 ",Foundations and Buildings LTD
Boston Borough Council,http://statistics.data.gov.uk/id/local-authority/32UB,Building Control,Other Private Contractors,31/03/2023,30004409,"1,769.72 ",Foundations and Buildings LTD
Boston Borough Council,http://statistics.data.gov.uk/id/local-authority/32UB,Building Control,Other Private Contractors,31/03/2023,30004499,"2,183.90 ",District Surveyors Association LTD T/A Labc
Boston Borough Council,http://statistics.data.gov.uk/id/local-authority/32UB,Communities,Bed and Breakfast Accommodation (Homelessness Service),31/03/2023,30004230,420.00 ,Living Haven Limited T/A The Saffron Hotel
Boston Borough Council,http://statistics.data.gov.uk/id/local-authority/32UB,Communities,Bed and Breakfast Accommodation (Homelessness Service),31/03/2023,30004746,350.00 ,Twenty Hotel And Bar (Boston) LTD
Boston Borough Council,http://statistics.data.gov.uk/id/local-authority/32UB,Communities,Bed and Breakfast Accommodation (Homelessness Service),31/03/2023,30004747,350.00 ,Twenty Hotel And Bar (Boston) LTD
Boston Borough Council,http://statistics.data.gov.uk/id/local-authority/32UB,Communities,Furniture and Equipment,31/03/2023,30004731,"1,305.00 ",Kiwa CMT
Boston Borough Council,http://statistics.data.gov.uk/id/local-authority/32UB,Communities,Grants and Contributions to Outside Bodies - No Service Received,31/03/2023,30004479,"4,464.00 ",Beesons of Boston LTD
Boston Borough Council,http://statistics.data.gov.uk/id/local-authority/32UB,Communities,Grants and Contributions to Outside Bodies - No Service Received,31/03/2023,30004703,"7,450.85 ",Princebuild LTD
Boston Borough Council,http://statistics.data.gov.uk/id/local-authority/32UB,Communities,Other Communication Costs,31/03/2023,30004730,300.00 ,BT Redcare
Boston Borough Council,http://statistics.data.gov.uk/id/local-authority/32UB,Communities,Other Miscellaneous Expenses,31/03/2023,30004536,325.00 ,"""personal information redacted"""
Boston Borough Council,http://statistics.data.gov.uk/id/local-authority/32UB,Communities,Other Private Contractors,31/03/2023,30004537,325.00 ,"""personal information redacted"""
Boston Borough Council,http://statistics.data.gov.uk/id/local-authority/32UB,Communities,"Purchase of Plant, Machinery and Equipment",31/03/2023,30004695,"1,905.75 ",Videcom Security LTD
Boston Borough Council,http://statistics.data.gov.uk/id/local-authority/32UB,Communities,Staff Training Expenses (Non-Payroll),31/03/2023,30004152,"1,095.00 ",CSPT - Community Safety Professionals Training
Boston Borough Council,http://statistics.data.gov.uk/id/local-authority/32UB,Council Tax & Benefits,Business Rates - Contribution to Surplus/Deficit,31/03/2023,30004944,"-298,232.00 ",MHCLG (RSG)
Boston Borough Council,http://statistics.data.gov.uk/id/local-authority/32UB,Council Tax & Benefits,Business Rates - Share of Income Central Government,31/03/2023,30004944,"742,652.00 ",MHCLG (RSG)
Boston Borough Council,http://statistics.data.gov.uk/id/local-authority/32UB,Council Tax & Benefits,Computer Software Licence Costs,31/03/2023,30004534,"41,152.90 ",Capita Business Services Ltd
Boston Borough Council,http://statistics.data.gov.uk/id/local-authority/32UB,Council Tax & Benefits,Computer Software Licence Costs,31/03/2023,30004535,"8,393.00 ",Capita Business Services Ltd
Boston Borough Council,http://statistics.data.gov.uk/id/local-authority/32UB,Credit Control,Professional and Contractors Fees,31/03/2023,30004133,408.00 ,Inform CPI LTD
Boston Borough Council,http://statistics.data.gov.uk/id/local-authority/32UB,Credit Control,Professional and Contractors Fees,31/03/2023,30004783,"4,500.00 ",Inform CPI LTD
Boston Borough Council,http://statistics.data.gov.uk/id/local-authority/32UB,Finance,Business Rates - Contribution to Surplus/Deficit,31/03/2023,30004944,"-298,232.00 ",MHCLG (RSG)
Boston Borough Council,http://statistics.data.gov.uk/id/local-authority/32UB,Finance,Business Rates - Share of Income Central Government,31/03/2023,30004944,"742,652.00 ",MHCLG (RSG)
Boston Borough Council,http://statistics.data.gov.uk/id/local-authority/32UB,Finance,PSPS Non-Base Contract Costs,31/03/2023,30004517,345.00 ,Public Sector Partnership Services LTD
Boston Borough Council,http://statistics.data.gov.uk/id/local-authority/32UB,Human Resources,Employee Related Schemes (Non-Payroll),31/03/2023,30004191,262.50 ,Terryberry Ltd
Boston Borough Council,http://statistics.data.gov.uk/id/local-authority/32UB,Information Technology,Computer Software Licence Costs,31/03/2023,30004530,"17,308.89 ",East Lindsey District Council
Boston Borough Council,http://statistics.data.gov.uk/id/local-authority/32UB,Information Technology,Internal Printing,31/03/2023,30004533,"7,696.90 ",Public Sector Partnership Services LTD
Boston Borough Council,http://statistics.data.gov.uk/id/local-authority/32UB,Legal Services,Legal Fees,31/03/2023,30004421,"8,868.21 ",Lincolnshire County Council
Boston Borough Council,http://statistics.data.gov.uk/id/local-authority/32UB,Leisure,Gas,31/03/2023,30004772,"2,209.40 ",SDL Biomass LTD
Boston Borough Council,http://statistics.data.gov.uk/id/local-authority/32UB,Leisure,Gas,31/03/2023,30004774,"3,745.40 ",SDL Biomass LTD
Boston Borough Council,http://statistics.data.gov.uk/id/local-authority/32UB,Operations,Agency Staff,31/03/2023,30004480,"3,540.90 ",Comensura LTD
Boston Borough Council,http://statistics.data.gov.uk/id/local-authority/32UB,Operations,Maintenance,31/03/2023,30004646,250.00 ,Chris Sellars Groundcare LTD
Boston Borough Council,http://statistics.data.gov.uk/id/local-authority/32UB,Operations,Materials and Consumables,31/03/2023,30004674,"1,555.00 ",Harrison's Packaging Ltd
Boston Borough Council,http://statistics.data.gov.uk/id/local-authority/32UB,Operations,Staff Training Expenses (Non-Payroll),31/03/2023,30004156,900.00 ,Terberg Matec UK
Boston Borough Council,http://statistics.data.gov.uk/id/local-authority/32UB,Property Services,External Audit Fees,31/03/2023,30004225,"2,675.00 ",Savills UK LTD
Boston Borough Council,http://statistics.data.gov.uk/id/local-authority/32UB,Property Services,Materials and Consumables,31/03/2023,30004121,490.00 ,Adcock Refrigeration and Air Conditioning LTD
Boston Borough Council,http://statistics.data.gov.uk/id/local-authority/32UB,Property Services,Materials and Consumables,31/03/2023,30004410,"1,173.19 ",Periam and Williamson Ltd
Boston Borough Council,http://statistics.data.gov.uk/id/local-authority/32UB,Property Services,Materials and Consumables,31/03/2023,30004451,239.00 ,GB Security Group
Boston Borough Council,http://statistics.data.gov.uk/id/local-authority/32UB,Property Services,Materials and Consumables,31/03/2023,30004550,"1,431.10 ",Heritage Trust of Lincolnshire LTD
Boston Borough Council,http://statistics.data.gov.uk/id/local-authority/32UB,Property Services,Materials and Consumables,31/03/2023,30004681,912.00 ,Wiles Fabrications
Boston Borough Council,http://statistics.data.gov.uk/id/local-authority/32UB,Strategic Economic Development Projects,Professional and Contractors Fees,31/03/2023,30004645,"2,610.00 ",Park Avenue Recruitment
Boston Borough Council,http://statistics.data.gov.uk/id/local-authority/32UB,Strategic Economic Development Projects,Professional and Contractors Fees,31/03/2023,30004685,"2,811.00 ",Influence Landscape Planning & Design Ltd
Boston Borough Council,http://statistics.data.gov.uk/id/local-authority/32UB,Strategic Economic Development Projects,Professional and Contractors Fees,31/03/2023,30004688,"1,800.00 ",Max Associates (Holdings) LTD
Boston Borough Council,http://statistics.data.gov.uk/id/local-authority/32UB,Strategic Economic Development Projects,Professional and Contractors Fees,31/03/2023,30004692,600.00 ,Estrada Ecology Ltd
Boston Borough Council,http://statistics.data.gov.uk/id/local-authority/32UB,Strategic Economic Development Projects,Professional Fees,31/03/2023,30004687,"2,610.00 ",Park Avenue Recruitment
Boston Borough Council,http://statistics.data.gov.uk/id/local-authority/32UB,Communities,Grants and Contributions - Where a Service is Received,04/04/2023,30004262,"4,023.00 ",HM Prison & Probation Service (NOMS Agency)
Boston Borough Council,http://statistics.data.gov.uk/id/local-authority/32UB,Communities,Grants and Contributions - Where a Service is Received,04/04/2023,30004750,"13,002.64 ",Citizens Advice Mid Lincolnshire
Boston Borough Council,http://statistics.data.gov.uk/id/local-authority/32UB,Communities,Grants and Contributions to Outside Bodies - No Service Received,04/04/2023,30004630,750.00 ,The Parish of Boston
Boston Borough Council,http://statistics.data.gov.uk/id/local-authority/32UB,Communities,Grants and Contributions to Outside Bodies - No Service Received,04/04/2023,30004641,500.00 ,Fishtoft Parish Council
Boston Borough Council,http://statistics.data.gov.uk/id/local-authority/32UB,Communities,Grants and Contributions to Outside Bodies - No Service Received,04/04/2023,30004786,"6,641.79 ",JH Smithson and Son LTD
Boston Borough Council,http://statistics.data.gov.uk/id/local-authority/32UB,Environmental Health,Other Private Contractors,04/04/2023,30004771,457.80 ,UK Health Security Agency
Boston Borough Council,http://statistics.data.gov.uk/id/local-authority/32UB,Information Technology,Telephone and Mobiles,04/04/2023,30004349,"1,622.12 ",Vodafone
Boston Borough Council,http://statistics.data.gov.uk/id/local-authority/32UB,Legal Services,Legal Fees,04/04/2023,30004744,"1,693.32 ",Lincolnshire County Council
Boston Borough Council,http://statistics.data.gov.uk/id/local-authority/32UB,Leisure,Gas,04/04/2023,30004415,"1,152.00 ",SDL Biomass LTD
Boston Borough Council,http://statistics.data.gov.uk/id/local-authority/32UB,Operations,Fuel and Oil,04/04/2023,30004232,"1,317.25 ",Pace Fuelcare
Boston Borough Council,http://statistics.data.gov.uk/id/local-authority/32UB,Operations,Maintenance,04/04/2023,30004199,335.10 ,Specialist Fleet Services LTD
Boston Borough Council,http://statistics.data.gov.uk/id/local-authority/32UB,Property Services,Advertising - Events,04/04/2023,30004603,"1,000.00 ",Market Innovations Ltd.
Boston Borough Council,http://statistics.data.gov.uk/id/local-authority/32UB,Property Services,Materials and Consumables,04/04/2023,30004677,282.00 ,Glen Farrow UK LTD
Boston Borough Council,http://statistics.data.gov.uk/id/local-authority/32UB,Town Centre,Advertising - Events,04/04/2023,30004603,"1,000.00 ",Market Innovations Ltd.
Boston Borough Council,http://statistics.data.gov.uk/id/local-authority/32UB,Town Centre,Advertising - Events,04/04/2023,30004691,240.00 ,Chilli Media and Publishing LTD
Boston Borough Council,http://statistics.data.gov.uk/id/local-authority/32UB,BTAC,Materials and Consumables,06/04/2023,30004361,739.23 ,ESPO
Boston Borough Council,http://statistics.data.gov.uk/id/local-authority/32UB,Communities,Bed and Breakfast Accommodation (Homelessness Service),06/04/2023,30004493,420.00 ,Living Haven Limited T/A The Saffron Hotel
Boston Borough Council,http://statistics.data.gov.uk/id/local-authority/32UB,Economic Development,Professional and Contractors Fees,06/04/2023,30004643,"1,371.80 ",Executive Consultancy Services LTD
Boston Borough Council,http://statistics.data.gov.uk/id/local-authority/32UB,Leisure,Gas,06/04/2023,30004442,"1,155.20 ",SDL Biomass LTD
Boston Borough Council,http://statistics.data.gov.uk/id/local-authority/32UB,Operations,Agency Staff,06/04/2023,30004729,"7,962.33 ",Comensura LTD
Boston Borough Council,http://statistics.data.gov.uk/id/local-authority/32UB,Operations,Maintenance,06/04/2023,30004422,442.75 ,Specialist Fleet Services LTD
Boston Borough Council,http://statistics.data.gov.uk/id/local-authority/32UB,Operations,Materials and Consumables,06/04/2023,30004363,423.06 ,ESPO
Boston Borough Council,http://statistics.data.gov.uk/id/local-authority/32UB,Operations,Vehicle Hire,06/04/2023,30004696,680.00 ,Phil Haines Coaches LTD
Boston Borough Council,http://statistics.data.gov.uk/id/local-authority/32UB,Operations,Vehicle Hire,06/04/2023,30004697,960.00 ,Phil Haines Coaches LTD
Boston Borough Council,http://statistics.data.gov.uk/id/local-authority/32UB,Operations,Vehicle Hire,06/04/2023,30004698,680.00 ,Phil Haines Coaches LTD
Boston Borough Council,http://statistics.data.gov.uk/id/local-authority/32UB,Planning,Other Miscellaneous Expenses,06/04/2023,30004522,"2,000.00 ",Norfolk County Council
Boston Borough Council,http://statistics.data.gov.uk/id/local-authority/32UB,Planning,Professional and Contractors Fees,06/04/2023,30004756,"1,062.50 ",DPA Planning Ltd
Boston Borough Council,http://statistics.data.gov.uk/id/local-authority/32UB,Property Services,Materials and Consumables,06/04/2023,30004361,739.23 ,ESPO
Boston Borough Council,http://statistics.data.gov.uk/id/local-authority/32UB,Property Services,Materials and Consumables,06/04/2023,30004363,423.06 ,ESPO
Boston Borough Council,http://statistics.data.gov.uk/id/local-authority/32UB,Property Services,Materials and Consumables,06/04/2023,30004367,"2,215.00 ",Adcock Refrigeration and Air Conditioning LTD
Boston Borough Council,http://statistics.data.gov.uk/id/local-authority/32UB,Property Services,Materials and Consumables,06/04/2023,30004369,631.00 ,Clymac LTD
Boston Borough Council,http://statistics.data.gov.uk/id/local-authority/32UB,Property Services,Materials and Consumables,06/04/2023,30004372,445.00 ,Adcock Refrigeration and Air Conditioning LTD
Boston Borough Council,http://statistics.data.gov.uk/id/local-authority/32UB,Property Services,Materials and Consumables,06/04/2023,30004474,692.00 ,Periam and Williamson Ltd
Boston Borough Council,http://statistics.data.gov.uk/id/local-authority/32UB,Property Services,Materials and Consumables,06/04/2023,30004552,910.89 ,Periam and Williamson Ltd
Boston Borough Council,http://statistics.data.gov.uk/id/local-authority/32UB,Climate Change,Professional and Contractors Fees,11/04/2023,30004359,525.00 ,The Oyster Partnership Ltd
Boston Borough Council,http://statistics.data.gov.uk/id/local-authority/32UB,Climate Change,Professional and Contractors Fees,11/04/2023,30004360,525.00 ,The Oyster Partnership Ltd
Boston Borough Council,http://statistics.data.gov.uk/id/local-authority/32UB,Communities,Computer Hardware Purchase,11/04/2023,30004362,306.92 ,Probrand Limited
Boston Borough Council,http://statistics.data.gov.uk/id/local-authority/32UB,Communities,Other Miscellaneous Expenses,11/04/2023,30004735,"1,367.23 ",Boston Borough Council
Boston Borough Council,http://statistics.data.gov.uk/id/local-authority/32UB,Communities,Other Miscellaneous Expenses,11/04/2023,30004736,286.80 ,Boston Borough Council
Boston Borough Council,http://statistics.data.gov.uk/id/local-authority/32UB,Communities,Other Miscellaneous Expenses,11/04/2023,30004737,322.90 ,Boston Borough Council
Boston Borough Council,http://statistics.data.gov.uk/id/local-authority/32UB,Communities,Staff Training Expenses (Non-Payroll),11/04/2023,30004501,"2,790.90 ",Orchid Health And Wellbeing Consultancy
Boston Borough Council,http://statistics.data.gov.uk/id/local-authority/32UB,"Democratic, Civic & Electoral Services",Other Employee Expenses,11/04/2023,30004768,"1,902.00 ",Public Sector Partnership Services LTD
Boston Borough Council,http://statistics.data.gov.uk/id/local-authority/32UB,Leisure,Equipment Lease Payments (More than 12 months),11/04/2023,30004377,302.18 ,Culligan (UK) Ltd
Boston Borough Council,http://statistics.data.gov.uk/id/local-authority/32UB,Communities,Bed and Breakfast Accommodation (Homelessness Service),13/04/2023,30004751,420.00 ,Living Haven Limited T/A The Saffron Hotel
Boston Borough Council,http://statistics.data.gov.uk/id/local-authority/32UB,"Democratic, Civic & Electoral Services",Stationery,13/04/2023,30004587,234.00 ,Shaw and Sons LTD
Boston Borough Council,http://statistics.data.gov.uk/id/local-authority/32UB,Economic Development,Professional and Contractors Fees,13/04/2023,30004492,"2,988.75 ",Longstaff Chartered Surveyors
Boston Borough Council,http://statistics.data.gov.uk/id/local-authority/32UB,Information Technology,Computer Software Licence Costs,13/04/2023,30004454,"8,915.52 ",Abavus LTD
Boston Borough Council,http://statistics.data.gov.uk/id/local-authority/32UB,Leisure,Gas,13/04/2023,30004676,995.20 ,SDL Biomass LTD
Boston Borough Council,http://statistics.data.gov.uk/id/local-authority/32UB,Leisure,Purchase Of Goods For Resale,13/04/2023,30004586,345.00 ,RT Promotions
Boston Borough Council,http://statistics.data.gov.uk/id/local-authority/32UB,Bereavement,Purchase Of Goods For Resale,18/04/2023,30004683,450.15 ,The Hilton Cabinet Company
Boston Borough Council,http://statistics.data.gov.uk/id/local-authority/32UB,Climate Change,Professional and Contractors Fees,18/04/2023,30004585,525.00 ,The Oyster Partnership Ltd
Boston Borough Council,http://statistics.data.gov.uk/id/local-authority/32UB,Credit Control,Professional and Contractors Fees,18/04/2023,30004738,600.00 ,Inform CPI LTD
Boston Borough Council,http://statistics.data.gov.uk/id/local-authority/32UB,Environmental Health,Other Private Contractors,18/04/2023,30004776,457.80 ,UK Health Security Agency
Boston Borough Council,http://statistics.data.gov.uk/id/local-authority/32UB,Environmental Health,Other Private Contractors,18/04/2023,30004778,327.00 ,UK Health Security Agency
Boston Borough Council,http://statistics.data.gov.uk/id/local-authority/32UB,Operations,Other Private Contractors,18/04/2023,30004642,295.00 ,MCP Environmental LLP
Boston Borough Council,http://statistics.data.gov.uk/id/local-authority/32UB,Communities,Bed and Breakfast Accommodation (Homelessness Service),20/04/2023,30004752,420.00 ,Living Haven Limited T/A The Saffron Hotel
Boston Borough Council,http://statistics.data.gov.uk/id/local-authority/32UB,Leisure,Gas,20/04/2023,30004782,"1,158.40 ",SDL Biomass LTD
Boston Borough Council,http://statistics.data.gov.uk/id/local-authority/32UB,Climate Change,Professional and Contractors Fees,25/04/2023,30004759,525.00 ,The Oyster Partnership Ltd
Boston Borough Council,http://statistics.data.gov.uk/id/local-authority/32UB,Corporate,Purchase of Software,25/04/2023,30004775,"17,692.00 ",Goss Interactive LTD
Boston Borough Council,http://statistics.data.gov.uk/id/local-authority/32UB,Planning,Planning Application Fees,25/04/2023,30004767,462.00 ,Planning Portal Quest LTD
